fUSD/lending_fUSD_20240222
["ID","MTS","AMOUNT","RATE_DAILY","PERIOD"]
[314893407,1708625457633,-957.57,0.00032876,2]
[314893408,1708625457643,-1132.71,0.00032876,2]
[314893409,1708625457652,-500.0,0.00032876,2]
[314893410,1708625457662,-1840.14,0.00032876,2]
[314893411,1708625457673,-1105.16,0.00032876,2]
[314893412,1708625457682,-856.33,0.00032876,2]
[314893413,1708625457692,-500.0,0.00032876,2]
[314893414,1708625457701,-500.0,0.00032876,2]
[314893415,1708625457711,-500.0,0.00032876,2]
[314893416,1708625457720,-8688.16,0.00032876,2]
[314893417,1708625457730,-500.0,0.00032876,2]
[314893418,1708625457740,-500.0,0.00032876,2]
[314893419,1708625457752,-500.0,0.00032876,2]
[314893420,1708625457761,-597.54,0.00032876,2]
[314893421,1708625457770,-500.0,0.00032876,2]
[314893422,1708625457780,-500.0,0.00032876,2]
[314893423,1708625457789,-1035.38,0.00032876,2]
[314893424,1708625457798,-500.0,0.00032876,2]
[314893425,1708625457807,-526.93080787,0.00032876,2]
[314893426,1708625457817,-500.0,0.00032876,2]
[314893427,1708625457827,-500.0,0.00032876,2]
[314893428,1708625457836,-1031.07,0.00032876,2]
[314893429,1708625457845,-529.63722604,0.00032876,2]
[314893430,1708625457855,-607.73,0.00032876,2]
[314893431,1708625457866,-500.0,0.00032876,2]
[314893432,1708625457877,-4152.62,0.00032876,2]
[314893433,1708625457886,-4573.59,0.00032876,2]
[314893434,1708625457895,-500.0,0.00032876,2]
[314893435,1708625457905,-500.0,0.00032876,2]
[314893436,1708625457914,-500.0,0.00032876,2]
[314893437,1708625457923,-500.0,0.00032876,2]
[314893438,1708625457933,-5220.29,0.00032876,2]
[314893439,1708625457943,-1750.52,0.00032876,2]
[314893440,1708625457953,-500.0,0.00032876,2]
[314893441,1708625457963,-500.0,0.00032876,2]
[314893442,1708625457972,-740.42,0.00032876,2]
[314893443,1708625457982,-27929.76,0.00032876,2]
[314893444,1708625457992,-543.8,0.00032876,2]
[314893445,1708625458001,-579.71,0.00032876,2]
[314893446,1708625458011,-500.0,0.00032876,2]
[314893447,1708625458020,-2617.91,0.00032876,2]
[314893448,1708625458030,-500.0,0.00032876,2]
[314893449,1708625458040,-500.0,0.00032876,2]
[314893450,1708625458049,-500.0,0.00032876,2]
[314893451,1708625458059,-547.27445372,0.00032876,2]
[314893452,1708625458068,-500.0,0.00032876,2]
[314893453,1708625458077,-769.4,0.00032876,2]
[314893454,1708625458087,-500.0,0.00032876,2]
[314893455,1708625458096,-500.0,0.00032876,2]
[314893456,1708625458106,-3104.43,0.00032876,2]
[314893457,1708625458115,-511.37721315,0.00032876,2]
[314893458,1708625458125,-2557.13,0.00032876,2]
[314893459,1708625458135,-31733.49,0.00032876,2]
[314893460,1708625458145,-763.62,0.00032876,2]
[314893461,1708625458154,-635.4,0.00032876,2]
[314893462,1708625458164,-1402.56,0.00032876,2]
[314893463,1708625458174,-500.0,0.00032876,2]
[314893464,1708625458183,-10076.31,0.00032876,2]
[314893465,1708625458192,-719.16,0.00032876,2]
[314893466,1708625458202,-500.0,0.00032876,2]
[314893467,1708625458211,-500.0,0.00032876,2]
[314893468,1708625458221,-549.71,0.00032876,2]
[314893469,1708625458230,-540.22,0.00032876,2]
[314893470,1708625458239,-506.34486346,0.00032876,2]
[314893471,1708625458248,-815.24,0.00032876,2]
[314893472,1708625458258,-10365.29,0.00032876,2]
[314893473,1708625458267,-1019.93,0.00032876,2]
[314893474,1708625458277,-1908.5,0.00032876,2]
[314893475,1708625458286,-500.0,0.00032876,2]
[314893476,1708625458296,-1930.81,0.00032876,2]
[314893477,1708625458306,-1831.86,0.00032876,2]
[314893478,1708625458316,-4645.8,0.00032876,2]
[314893479,1708625458325,-500.0,0.00032876,2]
[314893480,1708625458335,-500.0,0.00032876,2]
[314893481,1708625458345,-500.0,0.00032876,2]
[314893482,1708625458355,-831.39,0.00032876,2]
[314893483,1708625458364,-500.0,0.00032876,2]
[314893484,1708625458374,-1113.04,0.00032876,2]
[314893485,1708625458384,-2272.34,0.00032876,2]
[314893486,1708625458396,-703.63,0.00032876,2]
[314893487,1708625458406,-899.16,0.00032876,2]
[314893488,1708625458416,-19048.88,0.00032876,2]
[314893489,1708625458426,-500.0,0.00032876,2]
[314893490,1708625458436,-500.0,0.00032876,2]
[314893491,1708625458446,-612.06,0.00032876,2]
[314893492,1708625458455,-1790.32,0.00032876,2]
[314893493,1708625458465,-6652.12,0.00032876,2]
[314893494,1708625458474,-500.0,0.00032876,2]
[314893495,1708625458484,-3342.93,0.00032876,2]
[314893496,1708625458494,-1083.4,0.00032876,2]
[314893497,1708625458503,-500.0,0.00032876,2]
[314893498,1708625458513,-500.0,0.00032876,2]
[314893499,1708625458523,-500.0,0.00032876,2]
[314893500,1708625458532,-500.0,0.00032876,2]
[314893501,1708625458542,-3448.92,0.00032876,2]
[314893502,1708625458552,-500.0,0.00032876,2]
[314893503,1708625458562,-2397.11,0.00032876,2]
[314893504,1708625458571,-566.02,0.00032876,2]
[314893505,1708625458580,-500.0,0.00032876,2]
[314893506,1708625458590,-588.46,0.00032876,2]
[314893507,1708625458600,-668.81,0.00032876,2]
[314893508,1708625458609,-1000.0,0.00032876,2]
[314893509,1708625458619,-504.65,0.00032876,2]
[314893510,1708625458629,-1569.54,0.00032876,2]
[314893511,1708625458639,-890.14,0.00032876,2]
[314893512,1708625458648,-500.0,0.00032876,2]
[314893513,1708625458658,-2839.46,0.00032876,2]
[314893514,1708625458667,-500.0,0.00032876,2]
[314893515,1708625458677,-500.0,0.00032876,2]
[314893516,1708625458687,-500.0,0.00032876,2]
[314893517,1708625458697,-500.0,0.00032876,2]
[314893518,1708625458706,-1599.27,0.00032876,2]
[314893519,1708625458716,-12262.15,0.00032876,2]
[314893520,1708625458725,-500.0,0.00032876,2]
[314893521,1708625458734,-603.26,0.00032876,2]
[314893522,1708625458744,-4428.36,0.00032876,2]
[314893523,1708625458876,-684.48,0.00032876,2]
[314893524,1708625458887,-500.0,0.00032876,2]
[314893525,1708625458897,-500.0,0.00032876,2]
[314893526,1708625458906,-500.0,0.00032876,2]
[314893527,1708625458916,-429.22594993,0.00032876,2]
[314893528,1708625458925,-11511.86,0.00032876,2]
[314893529,1708625458936,-2710.14,0.00032876,2]
[314893530,1708625458946,-13857.62,0.00032876,2]
[314893531,1708625458956,-935.58,0.00032876,2]
[314893532,1708625458965,-500.0,0.00032876,2]
[314893533,1708625458975,-519.10149794,0.00032876,2]
[314893534,1708625458986,-1092.92,0.00032876,2]
[314893535,1708625458996,-500.0,0.00032876,2]
[314893536,1708625459006,-500.0,0.00032876,2]
[314893537,1708625459016,-1594.69,0.00032876,2]
[314893538,1708625459025,-500.0,0.00032876,2]
[314893539,1708625459035,-500.0,0.00032876,2]
[314893540,1708625459044,-500.0,0.00032876,2]
[314893541,1708625459055,-543.61,0.00032876,2]
[314893542,1708625459064,-500.0,0.00032876,2]
[314893543,1708625459074,-787.78,0.00032876,2]
[314893544,1708625459085,-12927.16,0.00032876,2]
[314893545,1708625459095,-500.0,0.00032876,2]
[314893546,1708625459105,-952.32,0.00032876,2]
[314893547,1708625459115,-734.09,0.00032876,2]
[314893548,1708625459125,-1397.23,0.00032876,2]
[314893549,1708625459136,-15657.06,0.00032876,2]
[314893550,1708625459149,-500.0,0.00032876,2]
[314893551,1708625459159,-500.0,0.00032876,2]
[314893552,1708625459169,-638.64,0.00032876,2]
[314893553,1708625459180,-500.0,0.00032876,2]
[314893554,1708625459189,-500.0,0.00032876,2]
[314893555,1708625459199,-500.0,0.00032876,2]
[314893556,1708625459210,-500.0,0.00032876,2]
[314893557,1708625459220,-500.0,0.00032876,2]
[314893558,1708625459230,-1622.99,0.00032876,2]
[314893559,1708625459240,-500.0,0.00032876,2]
[314893560,1708625459249,-2464.49,0.00032876,2]
[314893561,1708625459259,-2266.68,0.00032876,2]
[314893562,1708625459269,-500.0,0.00032876,2]
[314893563,1708625459279,-1572.14,0.00032876,2]
[314893564,1708625459289,-500.0,0.00032876,2]
[314893565,1708625459299,-1658.88,0.00032876,2]
[314893566,1708625459309,-802.87,0.00032876,2]
[314893567,1708625459319,-1524.56,0.00032876,2]
[314893568,1708625459329,-631.35,0.00032876,2]
[314893569,1708625459340,-500.0,0.00032876,2]
[314893570,1708625459350,-500.0,0.00032876,2]
[314893571,1708625459360,-500.0,0.00032876,2]
[314893572,1708625459369,-500.0,0.00032876,2]
[314893573,1708625459380,-500.0,0.00032876,2]
[314893574,1708625459392,-500.0,0.00032876,2]
[314893575,1708625459403,-500.0,0.00032876,2]
[314893576,1708625459413,-795.52,0.00032876,2]
[314893577,1708625459423,-1000.0,0.00032876,7]
[314893578,1708625459433,-6459.32,0.00032876,2]
[314893579,1708625459443,-500.0,0.00032876,2]
[314893580,1708625459452,-3708.97,0.00032876,2]
[314893581,1708625459462,-500.0,0.00032876,2]
[314893582,1708625459471,-833.35,0.00032876,2]
[314893583,1708625459481,-500.0,0.00032876,2]
[314893584,1708625459491,-500.0,0.00032876,2]
[314893585,1708625459501,-500.0,0.00032876,2]
[314893586,1708625459511,-1063.1,0.00032876,2]
[314893587,1708625459520,-8548.5,0.00032876,2]
[314893588,1708625459530,-330.0,0.00032876,2]
[314893589,1708625459540,-8589.16,0.00032876,2]
[314893590,1708625459550,-725.96,0.00032876,2]
[314893591,1708625459559,-619.16,0.00032876,2]
[314893592,1708625459568,-559.93,0.00032876,2]
[314893593,1708625459578,-328.97979401,0.00032876,2]
[314893594,1708625459587,-500.0,0.00032876,2]
[314893595,1708625459596,-500.0,0.00032876,2]
[314893596,1708625459607,-500.0,0.00032876,2]
[314893597,1708625459616,-695.88,0.00032876,2]
[314893598,1708625459626,-885.04,0.00032876,2]
[314893599,1708625459636,-500.0,0.00032876,2]
[314893600,1708625459647,-500.0,0.00032876,2]
[314893601,1708625459657,-1152.72,0.00032876,2]
[314893602,1708625459668,-500.0,0.00032876,2]
[314893603,1708625459677,-3657.93,0.00032876,2]
[314893604,1708625459686,-1529.13,0.00032876,2]
[314893605,1708625459696,-1521.37,0.00032876,2]
[314893606,1708625459706,-500.0,0.00032876,2]
[314893607,1708625459715,-649.89,0.00032876,2]
[314893608,1708625459725,-500.0,0.00032876,2]
[314893609,1708625459735,-402.72860533,0.00032876,2]
[314893610,1708625459744,-1012.78,0.00032876,2]
[314893611,1708625459753,-500.0,0.00032876,2]
[314893612,1708625459762,-500.0,0.00032876,2]
[314893613,1708625459772,-1281.51,0.00032876,2]
[314893614,1708625459782,-218.6373579,0.00032876,2]
[314893615,1708625459791,-982.4,0.00032876,2]
[314893616,1708625459801,-757.3,0.00032876,2]
[314893617,1708625459810,-548.38,0.00032876,2]
[314893618,1708625459821,-500.0,0.00032876,2]
[314893619,1708625459831,-500.0,0.00032876,2]
[314893620,1708625459841,-2549.51,0.00032876,2]
[314893621,1708625459852,-753.97,0.00032876,2]
[314893622,1708625459863,-2156.76,0.00032876,2]
[314893623,1708625459878,-500.0,0.00032876,2]
[314893624,1708625459887,-500.0,0.00032876,2]
[314893625,1708625459899,-2213.41,0.00032876,2]
[314893626,1708625459910,-500.0,0.00032876,2]
[314893627,1708625459919,-4381.7,0.00032876,2]
[314893628,1708625459929,-500.0,0.00032876,2]
[314893629,1708625459939,-5006.44,0.00032876,2]
[314893630,1708625459951,-500.0,0.00032876,2]
[314893631,1708625459963,-500.0,0.00032876,2]
[314893632,1708625459973,-500.0,0.00032876,2]
[314893633,1708625459982,-1083.67,0.00032876,2]
[314893634,1708625459991,-500.0,0.00032876,2]
[314893635,1708625460001,-500.0,0.00032876,2]
[314893636,1708625460011,-500.0,0.00032876,2]
[314893637,1708625460022,-2631.91,0.00032876,2]
[314893638,1708625460032,-500.0,0.00032876,2]
[314893639,1708625460042,-500.0,0.00032876,2]
[314893640,1708625460051,-1050.11,0.00032876,2]
[314893641,1708625460062,-928.82,0.00032876,2]
[314893642,1708625460074,-988.3,0.00032876,2]
[314893643,1708625460083,-1569.8,0.00032876,2]
[314893644,1708625460092,-553.85,0.00032876,2]
[314893645,1708625460102,-1347.04,0.00032876,2]
[314893646,1708625460111,-1930.76,0.00032876,2]
[314893647,1708625460120,-171.06068324,0.00032876,2]
[314893648,1708625460130,-500.0,0.00032876,2]
[314893649,1708625460139,-500.0,0.00032876,2]
[314893650,1708625460149,-500.0,0.00032876,2]
[314893651,1708625460159,-1578.95,0.00032876,2]
[314893652,1708625460168,-500.0,0.00032876,2]
[314893653,1708625460178,-654.06,0.00032876,2]
[314893654,1708625460187,-500.0,0.00032876,2]
[314893655,1708625460196,-500.0,0.00032876,2]
[314893656,1708625460206,-1152.52,0.00032876,2]
[314893657,1708625460215,-500.0,0.00032876,2]
[314893658,1708625460225,-13046.67,0.00032876,2]
[314893659,1708625460234,-1562.64,0.00032876,2]
[314893660,1708625460243,-554.48,0.00032876,2]
[314893661,1708625460282,-500.0,0.00032876,2]
[314893662,1708625460293,-5718.46,0.00032876,2]
[314893663,1708625460304,-500.0,0.00032876,2]
[314893664,1708625460313,-494.70017265,0.00032876,2]
[314893665,1708625460323,-585.24,0.00032876,2]
[314893666,1708625460333,-4320.81,0.00032876,2]
[314893667,1708625460342,-1143.61,0.00032876,2]
[314893668,1708625460353,-500.0,0.00032876,2]
[314893669,1708625460363,-500.0,0.00032876,2]
[314893670,1708625460372,-500.0,0.00032876,2]
[314893671,1708625460382,-3703.9,0.00032876,2]
[314893672,1708625460393,-500.0,0.00032876,2]
[314893673,1708625460402,-500.0,0.00032876,2]
[314893674,1708625460413,-507.05571081,0.00032876,2]
[314893675,1708625460423,-845.41,0.00032876,2]
[314893676,1708625460433,-1239.69,0.00032876,2]
[314893677,1708625460443,-500.0,0.00032876,2]
[314893678,1708625460453,-842.27,0.00032876,2]
[314893679,1708625460462,-2562.83,0.00032876,2]
[314893680,1708625460472,-500.0,0.00032876,2]
[314893681,1708625460482,-1082.3,0.00032876,2]
[314893682,1708625460491,-968.09,0.00032876,2]
[314893683,1708625460501,-500.0,0.00032876,2]
[314893684,1708625460512,-500.0,0.00032876,2]
[314893685,1708625460521,-500.0,0.00032876,2]
[314893686,1708625460531,-2763.17,0.00032876,2]
[314893687,1708625460541,-1672.02,0.00032876,2]
[314893688,1708625460551,-300.0,0.00032876,2]
[314893689,1708625460561,-500.0,0.00032876,2]
[314893690,1708625460570,-300.0,0.00032876,2]
[314893691,1708625460580,-500.0,0.00032876,2]
[314893692,1708625460589,-850.13,0.00032876,2]
[314893693,1708625460599,-668.88,0.00032876,2]
[314893694,1708625460609,-538.16379802,0.00032876,2]
[314893695,1708625460618,-500.0,0.00032876,2]
[314893696,1708625460627,-1634.02,0.00032876,2]
[314893697,1708625460637,-500.0,0.00032876,2]
[314893698,1708625460648,-500.0,0.00032876,2]
[314893699,1708625460657,-3311.96,0.00032876,2]
[314893700,1708625460667,-2625.59,0.00032876,2]
[314893701,1708625460676,-1279.14,0.00032876,2]
[314893702,1708625460685,-930.33,0.00032876,2]
[314893703,1708625460694,-500.0,0.00032876,2]
[314893704,1708625460703,-1635.09,0.00032876,2]
[314893705,1708625460713,-619.14,0.00032876,2]
[314893706,1708625460722,-2609.74,0.00032876,2]
[314893707,1708625460732,-576.94812008,0.00032876,2]
[314893708,1708625460742,-500.0,0.00032876,2]
[314893709,1708625460751,-3610.42,0.00032876,2]
[314893710,1708625460761,-967.22,0.00032876,2]
[314893711,1708625460770,-500.0,0.00032876,2]
[314893712,1708625460780,-923.8,0.00032876,2]
[314893713,1708625460790,-500.0,0.00032876,2]
[314893714,1708625460799,-1343.66,0.00032876,2]
[314893715,1708625460809,-500.0,0.00032876,2]
[314893716,1708625460818,-500.0,0.00032876,2]
[314893717,1708625460827,-1380.71,0.00032876,2]
[314893718,1708625460837,-174.32248457,0.00032876,2]
[314893719,1708625460846,-524.03880328,0.00032876,2]
[314893720,1708625460858,-1594.46,0.00032876,2]
[314893721,1708625460869,-8671.59,0.00032876,2]
[314893722,1708625460879,-1079.87,0.00032876,2]
[314893723,1708625460888,-1411.77,0.00032876,2]
[314893724,1708625460902,-500.0,0.00032876,2]
[314893725,1708625460912,-669.79,0.00032876,2]
[314893726,1708625460921,-1058.44,0.00032876,2]
[314893727,1708625460931,-151.0,0.00032877,7]
[314893728,1708625460941,-151.0,0.00032877,7]
[314893729,1708625460951,-151.0,0.00032877,7]
[314893730,1708625460960,-151.0,0.00032877,7]
[314893731,1708625460970,-151.0,0.00032877,7]
[314893732,1708625460980,-151.0,0.00032877,7]
[314893733,1708625460989,-151.0,0.00032877,7]
[314893734,1708625460999,-151.0,0.00032877,7]
[314893735,1708625461008,-151.0,0.00032877,7]
[314893736,1708625461018,-151.0,0.00032877,7]
[314893737,1708625461029,-231.46,0.00032877,7]
[314893738,1708625461038,-231.46,0.00032877,7]
[314893739,1708625461364,-231.46,0.00032877,7]
[314893740,1708625461373,-231.46,0.00032877,7]
[314893741,1708625461384,-151.0,0.00032877,7]
[314893742,1708625461396,-151.0,0.00032877,7]
[314893743,1708625461406,-151.0,0.00032877,7]
[314893744,1708625461418,-151.0,0.00032877,7]
[314893745,1708625461428,-151.4,0.00032877,2]
[314893746,1708625461439,-151.0,0.00032877,7]
[314893747,1708625461449,-151.0,0.00032877,7]
[314893748,1708625461459,-151.0,0.00032877,7]
[314893749,1708625461470,-151.0,0.00032877,7]
[314893750,1708625461480,-151.0,0.00032877,7]
[314893751,1708625461489,-227.684874,0.00032877,7]
[314893752,1708625461499,-151.0,0.00032877,7]
[314893753,1708625461508,-151.0,0.00032877,7]
[314893754,1708625461518,-151.0,0.00032877,7]
[314893755,1708625461528,-151.0,0.00032877,3]
[314893756,1708625461538,-151.0,0.00032877,3]
[314893757,1708625461548,-151.0,0.00032877,3]
[314893758,1708625461557,-228.879217,0.00032877,3]
[314893759,1708625461567,-151.0,0.00032877,7]
[314893760,1708625461577,-151.0,0.00032877,7]
[314893761,1708625461586,-151.0,0.00032877,7]
[314893762,1708625461596,-151.0,0.00032877,7]
[314893763,1708625461606,-151.0,0.00032877,7]
[314893764,1708625461616,-481.651988,0.00032877,7]
[314893765,1708625461626,-481.651988,0.00032877,7]
[314893766,1708625461635,-481.651988,0.00032877,7]
[314893767,1708625461645,-481.651988,0.00032877,7]
[314893768,1708625461655,-151.0,0.00032877,7]
[314893769,1708625461665,-151.0,0.00032877,7]
[314893770,1708625461674,-151.0,0.00032877,7]
[314893771,1708625461684,-156.950667,0.00032877,7]
[314893772,1708625461694,-156.950667,0.00032877,7]
[314893773,1708625461703,-156.950667,0.00032877,7]
[314893774,1708625461713,-156.950667,0.00032877,7]
[314893775,1708625461722,-151.0,0.00032877,7]
[314893776,1708625461731,-151.0,0.00032877,7]
[314893777,1708625461740,-151.0,0.00032877,7]
[314893778,1708625461750,-151.0,0.00032877,7]
[314893779,1708625461759,-151.0,0.00032877,7]
[314893780,1708625461768,-151.0,0.00032877,7]
[314893781,1708625461778,-151.0,0.00032877,7]
[314893782,1708625461787,-151.0,0.00032877,7]
[314893783,1708625461797,-151.0,0.00032877,7]
[314893784,1708625461806,-151.0,0.00032877,7]
[314893785,1708625461816,-151.0,0.00032877,7]
[314893786,1708625461825,-151.0,0.00032877,7]
[314893787,1708625461834,-251.884821,0.00032877,7]
[314893788,1708625461845,-272.392206,0.00032877,7]
[314893789,1708625461855,-272.392206,0.00032877,7]
[314893790,1708625461866,-272.392206,0.00032877,7]
[314893791,1708625461876,-272.392206,0.00032877,7]
[314893792,1708625461885,-172.783178,0.00032877,7]
[314893793,1708625461895,-151.0,0.00032877,7]
[314893794,1708625461906,-151.0,0.00032877,7]
[314893795,1708625461917,-151.0,0.00032877,7]
[314893796,1708625461927,-151.0,0.00032877,7]
[314893797,1708625461937,-159.745135,0.00032877,7]
[314893798,1708625461948,-159.745135,0.00032877,7]
[314893799,1708625461958,-159.745135,0.00032877,7]
[314893800,1708625461967,-159.745135,0.00032877,7]
[314893801,1708625461977,-209.966881,0.00032877,7]
[314893802,1708625461986,-209.966881,0.00032877,7]
[314893803,1708625461996,-209.966881,0.00032877,7]
[314893804,1708625462006,-209.966881,0.00032877,7]
[314893805,1708625462015,-872.206723,0.00032877,7]
[314893806,1708625462025,-872.206723,0.00032877,7]
[314893807,1708625462035,-151.0,0.00032877,7]
[314893808,1708625462044,-151.0,0.00032877,7]
[314893809,1708625462054,-151.0,0.00032877,7]
[314893810,1708625462063,-151.0,0.00032877,7]
[314893811,1708625462073,-872.206723,0.00032877,7]
[314893812,1708625462082,-872.206723,0.00032877,7]
[314893813,1708625462092,-273.001206,0.00032877,7]
[314893814,1708625462101,-273.001206,0.00032877,7]
[314893815,1708625462111,-273.001206,0.00032877,7]
[314893816,1708625462120,-273.001206,0.00032877,7]
[314893817,1708625462129,-153.81,0.00032877,2]
[314893818,1708625462139,-1782.080711,0.00032877,7]
[314893819,1708625462149,-1782.080711,0.00032877,7]
[314893820,1708625462158,-151.0,0.00032877,7]
[314893821,1708625462168,-151.0,0.00032877,7]
[314893822,1708625462178,-240.853509,0.00032877,7]
[314893823,1708625462187,-240.853509,0.00032877,7]
[314893824,1708625462196,-240.853509,0.00032877,7]
[314893825,1708625462206,-240.853509,0.00032877,7]
[314893826,1708625462215,-151.0,0.00032877,7]
[314893827,1708625462225,-151.0,0.00032877,7]
[314893828,1708625462235,-151.0,0.00032877,7]
[314893829,1708625462244,-151.0,0.00032877,7]
[314893830,1708625462255,-521.447789,0.00032877,7]
[314893831,1708625462266,-151.0,0.00032877,7]
[314893832,1708625462277,-521.447789,0.00032877,7]
[314893833,1708625462287,-521.447789,0.00032877,7]
[314893834,1708625462297,-521.447789,0.00032877,7]
[314893835,1708625462307,-151.0,0.00032877,7]
[314893836,1708625462317,-151.0,0.00032877,7]
[314893837,1708625462327,-151.0,0.00032877,7]
[314893838,1708625462336,-151.0,0.00032877,7]
[314893839,1708625462346,-162.346877,0.00032877,2]
[314893840,1708625462356,-162.346877,0.00032877,2]
[314893841,1708625462365,-300.314725,0.00032877,7]
[314893842,1708625462375,-162.346877,0.00032877,2]
[314893843,1708625462384,-162.346877,0.00032877,2]
[314893844,1708625462396,-308.051986,0.00032877,7]
[314893845,1708625462406,-308.051986,0.00032877,7]
[314893846,1708625462416,-151.887958,0.00032877,7]
[314893847,1708625462426,-151.0,0.00032877,7]
[314893848,1708625462436,-151.0,0.00032877,7]
[314893849,1708625462446,-308.051986,0.00032877,7]
[314893850,1708625462455,-308.051986,0.00032877,7]
[314893851,1708625462465,-188.151257,0.00032877,7]
[314893852,1708625462476,-151.0,0.00032877,7]
[314893853,1708625462486,-151.0,0.00032877,7]
[314893854,1708625462495,-230.005431,0.00032877,7]
[314893855,1708625462505,-230.005431,0.00032877,7]
[314893856,1708625462514,-230.005431,0.00032877,7]
[314893857,1708625462524,-199.0,0.00032877,7]
[314893858,1708625462533,-230.005431,0.00032877,7]
[314893859,1708625462542,-151.0,0.00032877,7]
[314893860,1708625462552,-151.0,0.00032877,7]
[314893861,1708625462561,-156.888403,0.00032877,7]
[314893862,1708625462570,-156.888403,0.00032877,7]
[314893863,1708625462580,-156.888403,0.00032877,7]
[314893864,1708625462589,-156.888403,0.00032877,7]
[314893865,1708625462599,-151.0,0.00032877,7]
[314893866,1708625462608,-151.0,0.00032877,7]
[314893867,1708625462618,-2871.255775,0.00032877,7]
[314893868,1708625462627,-2871.255775,0.00032877,7]
[314893869,1708625462637,-2871.255775,0.00032877,7]
[314893870,1708625462646,-2871.255775,0.00032877,7]
[314893871,1708625462655,-151.0,0.00032877,7]
[314893872,1708625462664,-151.0,0.00032877,7]
[314893873,1708625462673,-151.0,0.00032877,7]
[314893874,1708625462682,-358.319661,0.00032877,7]
[314893875,1708625462693,-358.319661,0.00032877,7]
[314893876,1708625462702,-151.0,0.00032877,7]
[314893877,1708625462711,-358.319661,0.00032877,7]
[314893878,1708625462720,-358.319661,0.00032877,7]
[314893879,1708625462730,-151.0,0.00032877,7]
[314893880,1708625462739,-151.0,0.00032877,7]
[314893881,1708625462748,-151.0,0.00032877,7]
[314893882,1708625462758,-151.0,0.00032877,7]
[314893883,1708625462767,-151.0,0.00032877,7]
[314893884,1708625462776,-151.0,0.00032877,7]
[314893885,1708625462785,-151.0,0.00032877,7]
[314893886,1708625462795,-151.0,0.00032877,7]
[314893887,1708625462804,-151.0,0.00032877,7]
[314893888,1708625462814,-151.0,0.00032877,7]
[314893889,1708625462823,-182.999342,0.00032877,7]
[314893890,1708625462833,-1614.812565,0.00032877,7]
[314893891,1708625462842,-151.0,0.00032877,7]
[314893892,1708625462851,-182.999342,0.00032877,7]
[314893893,1708625462864,-1614.812565,0.00032877,7]
[314893894,1708625462874,-151.0,0.00032877,7]
[314893895,1708625462883,-1614.812565,0.00032877,7]
[314893896,1708625462893,-1614.812565,0.00032877,7]
[314893897,1708625462903,-182.999342,0.00032877,7]
[314893898,1708625462912,-182.999342,0.00032877,7]
[314893899,1708625462921,-151.0,0.00032877,7]
[314893900,1708625462931,-151.0,0.00032877,7]
[314893901,1708625462940,-151.0,0.00032877,7]
[314893902,1708625462951,-287.828974,0.00032877,7]
[314893903,1708625462960,-151.0,0.00032877,7]
[314893904,1708625462969,-151.0,0.00032877,7]
[314893905,1708625462978,-163.954301,0.00032877,7]
[314893906,1708625462987,-163.954301,0.00032877,7]